[Event "FIDE WYCC Girls U14 2023"]
[Site "Montesilvano"]
[Date "2023.11.20"]
[Round "7.12"]
[White "Romany, Joy"]
[Black "Mkrtchyan, Anahit H."]
[Result "0-1"]
[ECO "E12"]
[WhiteElo "1764"]
[BlackElo "1630"]
[Annotator "NA COMBH"]
[PlyCount "153"]
[EventDate "2023.11.13"]
[EventType "swiss"]
[EventCountry "ITA"]
[SourceTitle "playchess.com"]
[Source "ChessBase"]
[SourceQuality "1"]
[TimeControl "40/5400+30:1800+30"]

1. d4 {[%emt 0:00:16]} Nf6 {[%emt 0:00:05]} 2. c4 {[%emt 0:00:03]} e6 {[%emt 0:00:05]} 3. Nf3 {[%emt 0:00:04]} b6 {[%emt 0:00:21]} 4. a3 {[%emt 0:00:03]} Bb7 {[%emt 0:00:05]} 5. Nc3 {[%emt 0:00:08]} d5 {[%emt 0:03:17]} 6. cxd5 {[%emt 0:00:10]} Nxd5 {[%emt 0:00:05]} 7. Qc2 {[%emt 0:00:06]} Nd7 {[%emt 0:02:12]} 8. e4 {[%emt 0:00:39]} Nxc3 {[%emt 0:00:06]} 9. bxc3 {[%emt 0:00:05]} c5 {[%emt 0:00:22]} 10. Bd3 {[%emt 0:00:41]} Be7 {[%emt 0:02:54]} 11. O-O {[%emt 0:00:33]} O-O {[%emt 0:03:23]} 12. Rd1 {[%emt 0:00:52]} cxd4 {[%emt 0:03:16]} 13. cxd4 {[%emt 0:00:16]} h6 {[%emt 0:02:57]} 14. Qe2 {[%emt 0:04:01]} Rc8 {[%emt 0:07:45]} 15. Bb2 {[%emt 0:03:06]} Qc7 {[%emt 0:04:45]} 16. e5 {[%emt 0:07:53]} Nb8 {[%emt 0:06:18]} 17. Rac1 {[%emt 0:01:37]} Qd7 {[%emt 0:01:34]} 18. Bb1 {[%emt 0:04:49]} Rxc1 {[%emt 0:04:38]} 19. Bxc1 {[%emt 0:01:52]} Qa4 {[%emt 0:02:48]} 20. Re1 {[%emt 0:13:03]} Rd8 {[%emt 0:05:47]} 21. Qd3 {[%emt 0:10:16]} g6 {[%emt 0:00:07]} 22. Bc2 {[%emt 0:04:19]} Qa6 {[%emt 0:04:44]} 23. Qe3 {[%emt 0:06:31]} Bxf3 {[%emt 0:12:55]} 24. Qxf3 {[%emt 0:10:17]} Qc4 {[%emt 0:01:07]} 25. Bb3 {[%emt 0:04:10]} Qxd4 {[%emt 0:02:01]} 26. Bxh6 {[%emt 0:00:24]} Qd3 {[%emt 0:02:42]} 27. Qb7 {[%emt 0:06:11]} Qd7 {[%emt 0:08:33]} 28. Qf3 {[%emt 0:01:44]} Qd3 {[%emt 0:04:01]} 29. Qb7 {[%emt 0:00:57]} Qd7 {[%emt 0:00:37]} 30. Qf3 {[%emt 0:07:49]} Qd3 {[%emt 0:11:05]} 31. Qb7 {[%emt 0:00:56]} Qd7 {[%emt 0:00:09]} 32. Qe4 {[%emt 0:04:48]} Na6 {[%emt 0:00:46]} 33. Bc2 {[%emt 0:01:38]} Qd4 {[%emt 0:02:17]} 34. Qf3 {[%emt 0:03:24]} Qc4 {[%emt 0:01:01]} 35. Bb1 {[%emt 0:01:13]} Nc5 {[%emt 0:00:49]} 36. Rc1 {[%emt 0:01:00]} Qb3 {[%emt 0:00:39]} 37. Qg4 {[%emt 0:00:29]} Nd3 {[%emt 0:01:04]} 38. Bxd3 {[%emt 0:01:03]} Qxd3 {[%emt 0:00:06]} 39. a4 {[%emt 0:00:56]} Rd4 {[%emt 0:00:21]} 40. Bf4 {[%emt 0:00:00]} Qf5 {[%emt 0:00:00]} 41. Qxf5 {[%emt 0:06:50]} exf5 {[%emt 0:05:40]} 42. Be3 {[%emt 0:00:25]} Rxa4 {[%emt 0:00:17]} 43. f4 {[%emt 0:00:26]} Ba3 {[%emt 0:06:49]} 44. Rc8+ {[%emt 0:01:24]} Kg7 {[%emt 0:00:13]} 45. Rc7 {[%emt 0:00:22]} Kf8 {[%emt 0:00:04]} 46. Kf2 {[%emt 0:01:17]} b5 {[%emt 0:05:47]} 47. Rxa7 {[%emt 0:00:54]} Rxa7 {[%emt 0:00:20]} 48. Bxa7 {[%emt 0:00:02]} Ke7 {[%emt 0:00:22]} 49. Ke2 {[%emt 0:02:48]} Ke6 {[%emt 0:00:27]} 50. Kd3 {[%emt 0:00:27]} Kd5 {[%emt 0:00:09]} 51. Be3 {[%emt 0:00:29]} Bc5 {[%emt 0:00:40]} 52. Bc1 {[%emt 0:08:29]} Bf2 {[%emt 0:00:34]} 53. Ba3 {[%emt 0:04:08]} Bg1 {[%emt 0:00:42]} 54. h3 {[%emt 0:00:06]} Bh2 {[%emt 0:00:03]} 55. Bc1 {[%emt 0:02:23]} Bg3 {[%emt 0:00:09]} 56. Ke3 {[%emt 0:02:01]} Kc4 {[%emt 0:04:16]} 57. Kf3 {[%emt 0:00:45]} Bh4 {[%emt 0:00:04]} 58. g3 {[%emt 0:00:37]} Be7 {[%emt 0:00:09]} 59. g4 {[%emt 0:00:01]} Kc3 {[%emt 0:00:15]} 60. Kg3 {[%emt 0:02:15]} b4 {[%emt 0:00:22]} 61. h4 {[%emt 0:00:30]} b3 {[%emt 0:00:24]} 62. h5 {[%emt 0:00:56]} gxh5 {[%emt 0:00:15]} 63. gxf5 {[%emt 0:01:51]} Kc2 {[%emt 0:00:19]} 64. f6 {[%emt 0:00:04]} Bb4 {[%emt 0:00:24]} 65. f5 {[%emt 0:01:26]} Bc3 {[%emt 0:01:07]} 66. e6 {[%emt 0:00:32]} Bxf6 {[%emt 0:00:09]} 67. Ba3 {[%emt 0:00:19]} fxe6 {[%emt 0:00:15]} 68. fxe6 {[%emt 0:00:02]} Be7 {[%emt 0:00:09]} 69. Bxe7 {[%emt 0:00:37]} b2 {[%emt 0:00:03]} 70. Bg5 {[%emt 0:00:18]} b1=Q {[%emt 0:00:06]} 71. e7 {[%emt 0:00:04]} Qb8+ {[%emt 0:00:10]} 72. Kh4 {[%emt 0:00:11]} Qe8 {[%emt 0:00:01]} 73. Kg3 {[%emt 0:00:19]} Kd3 {[%emt 0:00:03]} 74. Kf4 {[%emt 0:00:06]} Kd4 {[%emt 0:00:07]} 75. Kf5 {[%emt 0:00:17]} Qf7+ {[%emt 0:00:23]} 76. Bf6+ {[%emt 0:00:05]} Kd5 {[%emt 0:00:02]} 77. Kg5 {[%emt 0:00:07]} 0-1

[Event "FIDE WYCC Girls U14 2023"]
[Site "Montesilvano"]
[Date "2023.11.20"]
[Round "7.13"]
[White "Maral Altankhuyag"]
[Black "Natoli, Alessia"]
[Result "0-1"]
[ECO "D23"]
[WhiteElo "1398"]
[BlackElo "1756"]
[Annotator "NA COMBH"]
[PlyCount "72"]
[EventDate "2023.11.13"]
[EventType "swiss"]
[EventCountry "ITA"]
[SourceTitle "playchess.com"]
[Source "ChessBase"]
[SourceQuality "1"]
[TimeControl "40/5400+30:1800+30"]

1. d4 {[%emt 0:00:16]} d5 {[%emt 0:00:05]} 2. c4 {[%emt 0:00:46]} dxc4 {[%emt 0:00:20]} 3. Nf3 {[%emt 0:02:42]} Nf6 {[%emt 0:00:14]} 4. g3 {[%emt 0:01:20]} c5 {[%emt 0:16:52]} 5. Bg2 {[%emt 0:02:46]} Nc6 {[%emt 0:05:35]} 6. e3 {[%emt 0:07:10]} Bf5 {[%emt 0:03:57]} 7. O-O {[%emt 0:03:16]} Bd3 {[%emt 0:02:30]} 8. Re1 {[%emt 0:00:13]} e6 {[%emt 0:00:24]} 9. Qa4 {[%emt 0:18:56]} Qa5 {[%emt 0:05:45]} 10. Qxa5 {[%emt 0:02:47]} Nxa5 {[%emt 0:00:02]} 11. Ne5 {[%emt 0:00:13]} Rb8 {[%emt 0:05:12]} 12. Bd2 {[%emt 0:12:24]} Nc6 {[%emt 0:03:12]} 13. Nxc6 {[%emt 0:01:57]} bxc6 {[%emt 0:00:07]} 14. Bxc6+ {[%emt 0:00:03]} Kd8 {[%emt 0:00:31]} 15. Ba5+ {[%emt 0:07:25]} Kc8 {[%emt 0:01:33]} 16. Nc3 {[%emt 0:05:37]} Rxb2 {[%emt 0:10:19]} 17. dxc5 {[%emt 0:12:36]} Be7 {[%emt 0:04:48]} 18. a3 {[%emt 0:05:24]} Nd7 {[%emt 0:05:02]} 19. Nb5 {[%emt 0:01:59]} Bxc5 {[%emt 0:04:25]} 20. Bc3 {[%emt 0:02:41]} Rb3 {[%emt 0:02:28]} 21. Bxg7 {[%emt 0:01:55]} Rg8 {[%emt 0:01:19]} 22. Bd4 {[%emt 0:01:42]} Bxd4 {[%emt 0:01:30]} 23. exd4 {[%emt 0:00:53]} a6 {[%emt 0:02:12]} 24. Nd6+ {[%emt 0:00:59]} Kc7 {[%emt 0:00:26]} 25. Bxd7 {[%emt 0:00:05]} Kxd6 {[%emt 0:00:14]} 26. Ba4 {[%emt 0:00:11]} Rb2 {[%emt 0:00:32]} 27. Rac1 {[%emt 0:02:21]} Kd5 {[%emt 0:01:35]} 28. Red1 {[%emt 0:02:21]} Rgb8 {[%emt 0:00:33]} 29. Bc6+ {[%emt 0:01:53]} Kxd4 {[%emt 0:00:22]} 30. Kg2 {[%emt 0:00:11]} Rb1 {[%emt 0:00:38]} 31. Kf3 {[%emt 0:00:22]} Rxc1 {[%emt 0:00:16]} 32. Rxc1 {[%emt 0:00:02]} Rb1 {[%emt 0:00:27]} 33. Rxb1 {[%emt 0:00:10]} Bxb1 {[%emt 0:00:08]} 34. Ke2 {[%emt 0:00:09]} Kc3 {[%emt 0:00:05]} 35. Ba4 {[%emt 0:01:05]} Kb2 {[%emt 0:00:09]} 36. f4 {[%emt 0:00:34]} c3 {[%emt 0:00:06]} 0-1

[Event "FIDE WYCC Girls U14 2023"]
[Site "Montesilvano"]
[Date "2023.11.20"]
[Round "7.14"]
[White "Trunz, Tamila"]
[Black "Lyutsinger, Iren"]
[Result "0-1"]
[ECO "B92"]
[WhiteElo "1732"]
[BlackElo "2020"]
[Annotator "NA RC"]
[PlyCount "62"]
[EventDate "2023.11.13"]
[EventType "swiss"]
[EventCountry "ITA"]
[SourceTitle "playchess.com"]
[Source "ChessBase"]
[SourceQuality "1"]
[TimeControl "40/5400+30:1800+30"]

1. e4 {[%emt 0:00:02]} c5 {[%emt 0:00:06]} 2. Nf3 {[%emt 0:00:05]} d6 {[%emt 0:00:12]} 3. d4 {[%emt 0:00:08]} cxd4 {[%emt 0:00:08]} 4. Nxd4 {[%emt 0:00:10]} Nf6 {[%emt 0:00:07]} 5. Nc3 {[%emt 0:00:03]} a6 {[%emt 0:00:08]} 6. Be2 {[%emt 0:00:06]} e5 {[%emt 0:00:07]} 7. Nb3 {[%emt 0:00:04]} Be7 {[%emt 0:00:18]} 8. Be3 {[%emt 0:00:07]} Be6 {[%emt 0:00:08]} 9. O-O {[%emt 0:00:18]} O-O {[%emt 0:00:37]} 10. Qd2 {[%emt 0:04:05]} b5 {[%emt 0:01:10]} 11. a4 {[%emt 0:00:28]} b4 {[%emt 0:03:15]} 12. Nd5 {[%emt 0:00:48]} Nxe4 {[%emt 0:05:45]} 13. Nxe7+ {[%emt 0:00:10]} Qxe7 {[%emt 0:00:05]} 14. Qxb4 {[%emt 0:00:07]} f5 {[%emt 0:04:45]} 15. Na5 {[%emt 0:12:09]} Nd7 {[%emt 0:16:04]} 16. Nc6 {[%emt 0:03:18]} Qf7 {[%emt 0:02:08]} 17. Rad1 {[%emt 0:02:34]} Rac8 {[%emt 0:08:21]} 18. Rxd6 {[%emt 0:31:24]} a5 {[%emt 0:09:04]} 19. Qa3 {[%emt 0:01:38]} Nxd6 {[%emt 0:04:02]} 20. Qxd6 {[%emt 0:00:06]} Rce8 {[%emt 0:07:49]} 21. Bb5 {[%emt 0:11:31]} f4 {[%emt 0:02:39]} 22. Bd2 {[%emt 0:04:51]} f3 {[%emt 0:09:27]} 23. Re1 {[%emt 0:14:57]} fxg2 {[%emt 0:05:47]} 24. Be3 {[%emt 0:00:17]} Qf6 {[%emt 0:04:01]} 25. Nxa5 {[%emt 0:02:31]} Rf7 {[%emt 0:03:07]} 26. Rd1 {[%emt 0:01:12]} Qh4 {[%emt 0:01:55]} 27. Qd2 {[%emt 0:02:56]} Ref8 {[%emt 0:01:57]} 28. Bc6 {[%emt 0:01:05]} e4 {[%emt 0:00:53]} 29. Bb5 {[%emt 0:00:15]} Ne5 {[%emt 0:00:39]} 30. Kxg2 {[%emt 0:02:22]} Ng4 {[%emt 0:01:59]} 31. Rh1 {[%emt 0:03:31]} Rxf2+ {[%emt 0:00:26]} 0-1

[Event "FIDE WYCC Girls U14 2023"]
[Site "Montesilvano"]
[Date "2023.11.20"]
[Round "7.15"]
[White "Smietanska, Wiktoria"]
[Black "Caku, Kler"]
[Result "1/2-1/2"]
[ECO "A17"]
[WhiteElo "2009"]
[BlackElo "1740"]
[Annotator "NA RC"]
[PlyCount "235"]
[EventDate "2023.11.13"]
[EventType "swiss"]
[EventCountry "ITA"]
[SourceTitle "playchess.com"]
[Source "ChessBase"]
[SourceQuality "1"]
[TimeControl "40/5400+30:1800+30"]

1. c4 {[%emt 0:00:02]} e6 {[%emt 0:01:47]} 2. Nc3 {[%emt 0:00:30]} Nf6 {[%emt 0:00:33]} 3. Nf3 {[%emt 0:02:26]} Be7 {[%emt 0:01:30]} 4. e3 {[%emt 0:07:11]} O-O {[%emt 0:00:30]} 5. b3 {[%emt 0:00:56]} b6 {[%emt 0:02:25]} 6. Bb2 {[%emt 0:01:21]} Bb7 {[%emt 0:00:14]} 7. Be2 {[%emt 0:03:58]} d5 {[%emt 0:00:32]} 8. O-O {[%emt 0:01:49]} dxc4 {[%emt 0:02:35]} 9. Bxc4 {[%emt 0:06:50]} c5 {[%emt 0:04:54]} 10. d4 {[%emt 0:01:49]} Nc6 {[%emt 0:03:25]} 11. d5 {[%emt 0:07:54]} exd5 {[%emt 0:04:53]} 12. Nxd5 {[%emt 0:01:18]} Nxd5 {[%emt 0:01:10]} 13. Bxd5 {[%emt 0:02:34]} Bf6 {[%emt 0:04:00]} 14. Bxf6 {[%emt 0:03:50]} Qxf6 {[%emt 0:00:27]} 15. e4 {[%emt 0:14:23]} Rad8 {[%emt 0:01:55]} 16. Nd2 {[%emt 0:02:48]} Ba6 {[%emt 0:04:30]} 17. Re1 {[%emt 0:10:13]} Ne5 {[%emt 0:08:47]} 18. Re3 {[%emt 0:08:46]} Ng4 {[%emt 0:11:53]} 19. Rf3 {[%emt 0:01:43]} Qe5 {[%emt 0:00:47]} 20. Rg3 {[%emt 0:02:03]} Nf6 {[%emt 0:09:21]} 21. Nc4 {[%emt 0:03:57]} Bxc4 {[%emt 0:01:56]} 22. bxc4 {[%emt 0:00:20]} b5 {[%emt 0:02:06]} 23. Qc1 {[%emt 0:11:28]} bxc4 {[%emt 0:00:54]} 24. Bxc4 {[%emt 0:01:10]} Nxe4 {[%emt 0:02:43]} 25. Re3 {[%emt 0:00:44]} Qd4 {[%emt 0:04:45]} 26. Bd3 {[%emt 0:01:38]} Nf6 {[%emt 0:04:43]} 27. h3 {[%emt 0:01:37]} Rfe8 {[%emt 0:07:22]} 28. Rg3 {[%emt 0:00:34]} Rc8 {[%emt 0:05:34]} 29. Rb1 {[%emt 0:00:25]} c4 {[%emt 0:00:30]} 30. Bf5 {[%emt 0:00:34]} Rb8 {[%emt 0:01:16]} 31. Rxb8 {[%emt 0:00:33]} Rxb8 {[%emt 0:00:01]} 32. Rc3 {[%emt 0:00:28]} Qd5 {[%emt 0:03:56]} 33. Qf4 {[%emt 0:00:34]} Re8 {[%emt 0:00:34]} 34. Rxc4 {[%emt 0:00:26]} g6 {[%emt 0:00:45]} 35. Bc2 {[%emt 0:00:32]} Nh5 {[%emt 0:01:35]} 36. Qc7 {[%emt 0:00:30]} Re1+ {[%emt 0:01:19]} 37. Kh2 {[%emt 0:00:03]} Re8 {[%emt 0:00:18]} 38. Bb3 {[%emt 0:00:33]} Qf5 {[%emt 0:00:34]} 39. Rc3 {[%emt 0:00:54]} Qf4+ {[%emt 0:02:29]} 40. Qxf4 {[%emt 0:00:00]} Nxf4 {[%emt 0:00:00]} 41. Rc7 {[%emt 0:00:44]} Ne6 {[%emt 0:00:51]} 42. Rxa7 {[%emt 0:01:53]} Kg7 {[%emt 0:02:33]} 43. a4 {[%emt 0:01:32]} Kf6 {[%emt 0:00:17]} 44. Rb7 {[%emt 0:03:21]} Ra8 {[%emt 0:02:27]} 45. Kg1 {[%emt 0:02:18]} Ra6 {[%emt 0:00:37]} 46. Kf1 {[%emt 0:01:19]} Nd8 {[%emt 0:03:20]} 47. Rd7 {[%emt 0:00:54]} Ne6 {[%emt 0:03:15]} 48. Ke2 {[%emt 0:05:01]} Ke5 {[%emt 0:08:05]} 49. Ke3 {[%emt 0:02:25]} Rb6 {[%emt 0:02:41]} 50. Bxe6 {[%emt 0:07:14]} Kxe6 {[%emt 0:00:36]} 51. Rd3 {[%emt 0:01:00]} Rb4 {[%emt 0:03:56]} 52. Ra3 {[%emt 0:01:37]} Kd7 {[%emt 0:00:10]} 53. Kd3 {[%emt 0:01:03]} Kc7 {[%emt 0:01:13]} 54. Kc2 {[%emt 0:00:45]} Rh4 {[%emt 0:02:38]} 55. Rf3 {[%emt 0:01:16]} Rxa4 {[%emt 0:01:40]} 56. Rxf7+ {[%emt 0:00:12]} Kd6 {[%emt 0:00:10]} 57. Kd3 {[%emt 0:00:47]} Rh4 {[%emt 0:00:58]} 58. Ke3 {[%emt 0:00:16]} Ke6 {[%emt 0:00:03]} 59. Ra7 {[%emt 0:01:58]} Kf6 {[%emt 0:00:44]} 60. f4 {[%emt 0:01:12]} Rh5 {[%emt 0:00:29]} 61. Kf3 {[%emt 0:01:41]} h6 {[%emt 0:00:23]} 62. Rh7 {[%emt 0:00:16]} g5 {[%emt 0:01:33]} 63. fxg5+ {[%emt 0:01:05]} Kxg5 {[%emt 0:00:17]} 64. Ra7 {[%emt 0:01:50]} Kg6 {[%emt 0:00:08]} 65. Ra6+ {[%emt 0:00:15]} Kg7 {[%emt 0:00:05]} 66. Kf4 {[%emt 0:00:46]} Rb5 {[%emt 0:00:07]} 67. Re6 {[%emt 0:00:23]} Rb4+ {[%emt 0:00:12]} 68. Kf5 {[%emt 0:00:24]} Rb5+ {[%emt 0:00:30]} 69. Re5 {[%emt 0:00:09]} Rb7 {[%emt 0:00:03]} 70. Kg4 {[%emt 0:00:42]} Kg6 {[%emt 0:00:16]} 71. Re6+ {[%emt 0:00:11]} Kg7 {[%emt 0:00:05]} 72. Kh5 {[%emt 0:01:06]} Rb5+ {[%emt 0:00:05]} 73. Kh4 {[%emt 0:00:06]} Rb4+ {[%emt 0:00:11]} 74. g4 {[%emt 0:00:24]} Rb3 {[%emt 0:00:02]} 75. Re1 {[%emt 0:00:20]} Ra3 {[%emt 0:00:08]} 76. Rg1 {[%emt 0:00:49]} Ra5 {[%emt 0:00:14]} 77. Rg3 {[%emt 0:00:35]} Rb5 {[%emt 0:00:12]} 78. Ra3 {[%emt 0:00:09]} Rc5 {[%emt 0:00:09]} 79. Kg3 {[%emt 0:00:04]} Rb5 {[%emt 0:00:05]} 80. h4 {[%emt 0:00:20]} Rb7 {[%emt 0:00:04]} 81. Ra4 {[%emt 0:00:21]} Rf7 {[%emt 0:00:10]} 82. Rf4 {[%emt 0:00:10]} Ra7 {[%emt 0:00:03]} 83. Re4 {[%emt 0:00:30]} Rf7 {[%emt 0:00:04]} 84. Re5 {[%emt 0:00:05]} Ra7 {[%emt 0:00:07]} 85. Kf4 {[%emt 0:00:11]} Rf7+ {[%emt 0:00:11]} 86. Rf5 {[%emt 0:01:13]} Ra7 {[%emt 0:00:18]} 87. Rb5 {[%emt 0:00:20]} Rf7+ {[%emt 0:00:06]} 88. Ke5 {[%emt 0:00:14]} Re7+ {[%emt 0:00:25]} 89. Kf4 {[%emt 0:01:24]} Rf7+ {[%emt 0:00:05]} 90. Rf5 {[%emt 0:00:07]} Ra7 {[%emt 0:00:04]} 91. Re5 {[%emt 0:00:33]} Rf7+ {[%emt 0:00:12]} 92. Ke4 {[%emt 0:00:10]} Ra7 {[%emt 0:00:06]} 93. Re6 {[%emt 0:00:08]} Ra4+ {[%emt 0:00:19]} 94. Kf5 {[%emt 0:00:07]} Ra5+ {[%emt 0:00:05]} 95. Re5 {[%emt 0:00:04]} Ra7 {[%emt 0:00:05]} 96. Kf4 {[%emt 0:01:56]} Rf7+ {[%emt 0:00:04]} 97. Ke4 {[%emt 0:00:16]} Ra7 {[%emt 0:00:04]} 98. Rd5 {[%emt 0:00:39]} Re7+ {[%emt 0:00:17]} 99. Kf4 {[%emt 0:02:56]} Rf7+ {[%emt 0:00:04]} 100. Ke3 {[%emt 0:00:39]} Ra7 {[%emt 0:00:10]} 101. Rd4 {[%emt 0:00:27]} Re7+ {[%emt 0:00:06]} 102. Kf4 {[%emt 0:00:07]} Ra7 {[%emt 0:00:20]} 103. Ke5 {[%emt 0:00:14]} Re7+ {[%emt 0:00:21]} 104. Kf5 {[%emt 0:00:08]} Rf7+ {[%emt 0:00:05]} 105. Ke6 {[%emt 0:00:08]} Rf6+ {[%emt 0:00:07]} 106. Ke5 {[%emt 0:00:05]} Rf7 {[%emt 0:00:08]} 107. Rd6 {[%emt 0:00:50]} Re7+ {[%emt 0:00:26]} 108. Re6 {[%emt 0:00:14]} Ra7 {[%emt 0:00:13]} 109. g5 {[%emt 0:00:27]} hxg5 {[%emt 0:00:10]} 110. hxg5 {[%emt 0:00:04]} Ra5+ {[%emt 0:00:05]} 111. Kf4 {[%emt 0:00:09]} Ra4+ {[%emt 0:00:08]} 112. Kf5 {[%emt 0:00:11]} Ra5+ {[%emt 0:00:05]} 113. Kg4 {[%emt 0:00:05]} Ra1 {[%emt 0:00:09]} 114. Re4 {[%emt 0:00:34]} Rg1+ {[%emt 0:00:11]} 115. Kf5 {[%emt 0:00:08]} Rf1+ {[%emt 0:00:04]} 116. Ke5 {[%emt 0:00:18]} Kg6 {[%emt 0:00:09]} 117. Rg4 {[%emt 0:00:06]} Rf5+ {[%emt 0:00:04]} 118. Ke4 {[%emt 0:00:07]} 1/2-1/2

[Event "FIDE WYCC Girls U14 2023"]
[Site "Montesilvano"]
[Date "2023.11.20"]
[Round "7.16"]
[White "Suyamin, Bonjoure Fille"]
[Black "Stoll, Lucia"]
[Result "1-0"]
[ECO "D37"]
[WhiteElo "1570"]
[BlackElo "1887"]
[Annotator "NA COMBH"]
[PlyCount "159"]
[EventDate "2023.11.13"]
[EventType "swiss"]
[EventCountry "ITA"]
[SourceTitle "playchess.com"]
[Source "ChessBase"]
[SourceQuality "1"]
[TimeControl "40/5400+30:1800+30"]

1. d4 {[%emt 0:00:03]} Nf6 {[%emt 0:00:06]} 2. Nf3 {[%emt 0:00:11]} e6 {[%emt 0:00:09]} 3. c4 {[%emt 0:00:24]} d5 {[%emt 0:00:09]} 4. Nc3 {[%emt 0:00:12]} dxc4 {[%emt 0:00:16]} 5. e4 {[%emt 0:07:12]} b5 {[%emt 0:00:36]} 6. e5 {[%emt 0:03:47]} Nd5 {[%emt 0:00:08]} 7. Nxb5 {[%emt 0:03:23]} Nb6 {[%emt 0:00:28]} 8. Be2 {[%emt 0:00:53]} Be7 {[%emt 0:00:53]} 9. O-O {[%emt 0:00:18]} Nc6 {[%emt 0:00:57]} 10. Be3 {[%emt 0:02:56]} O-O {[%emt 0:01:00]} 11. Rc1 {[%emt 0:04:12]} Rb8 {[%emt 0:03:11]} 12. b3 {[%emt 0:14:13]} a6 {[%emt 0:05:56]} 13. Nc3 {[%emt 0:00:25]} cxb3 {[%emt 0:03:27]} 14. axb3 {[%emt 0:01:44]} Bb7 {[%emt 0:05:58]} 15. Qd2 {[%emt 0:03:27]} Nb4 {[%emt 0:05:54]} 16. Ra1 {[%emt 0:06:56]} Qd7 {[%emt 0:11:20]} 17. Ng5 {[%emt 0:09:51]} N6d5 {[%emt 0:08:23]} 18. Nge4 {[%emt 0:04:36]} Rfd8 {[%emt 0:05:27]} 19. Rfd1 {[%emt 0:01:00]} Qe8 {[%emt 0:09:48]} 20. Bg5 {[%emt 0:08:10]} Nxc3 {[%emt 0:04:52]} 21. Nxc3 {[%emt 0:01:20]} c5 {[%emt 0:16:26]} 22. Bxe7 {[%emt 0:17:49]} Qxe7 {[%emt 0:00:06]} 23. Na4 {[%emt 0:01:09]} cxd4 {[%emt 0:01:21]} 24. Rac1 {[%emt 0:01:24]} Bd5 {[%emt 0:03:02]} 25. Nc5 {[%emt 0:01:21]} a5 {[%emt 0:01:43]} 26. Qb2 {[%emt 0:02:19]} Qg5 {[%emt 0:00:47]} 27. Bf1 {[%emt 0:01:12]} Nc6 {[%emt 0:00:34]} 28. Qe2 {[%emt 0:01:08]} Nxe5 {[%emt 0:00:44]} 29. Ne4 {[%emt 0:02:02]} Bxe4 {[%emt 0:03:40]} 30. Qxe4 {[%emt 0:00:08]} Ng6 {[%emt 0:00:34]} 31. Rc7 {[%emt 0:01:05]} Qf6 {[%emt 0:03:27]} 32. Qc2 {[%emt 0:00:41]} Ne7 {[%emt 0:00:57]} 33. Rd3 {[%emt 0:00:30]} Nf5 {[%emt 0:01:18]} 34. Rd2 {[%emt 0:00:35]} g6 {[%emt 0:00:31]} 35. Rd3 {[%emt 0:00:34]} Qe5 {[%emt 0:00:50]} 36. Rc5 {[%emt 0:00:39]} Rd5 {[%emt 0:00:06]} 37. Rc6 {[%emt 0:00:18]} Rdb5 {[%emt 0:00:30]} 38. Rf3 {[%emt 0:00:29]} R5b7 {[%emt 0:01:18]} 39. Rc5 {[%emt 0:00:15]} Qe1 {[%emt 0:00:12]} 40. h3 {[%emt 0:00:00]} Kg7 {[%emt 0:00:00]} 41. g4 {[%emt 0:05:05]} Nd6 {[%emt 0:05:13]} 42. Kg2 {[%emt 0:02:40]} e5 {[%emt 0:06:49]} 43. Rc6 {[%emt 0:02:36]} e4 {[%emt 0:02:14]} 44. Rg3 {[%emt 0:09:48]} Qb4 {[%emt 0:01:57]} 45. h4 {[%emt 0:02:33]} Rb6 {[%emt 0:02:20]} 46. Rc7 {[%emt 0:01:21]} R8b7 {[%emt 0:00:46]} 47. Rc5 {[%emt 0:00:30]} Re7 {[%emt 0:06:17]} 48. h5 {[%emt 0:01:05]} Nb5 {[%emt 0:03:51]} 49. Rc8 {[%emt 0:01:30]} g5 {[%emt 0:01:28]} 50. Bxb5 {[%emt 0:01:17]} Rxb5 {[%emt 0:01:02]} 51. Qc6 {[%emt 0:03:51]} h6 {[%emt 0:01:19]} 52. Qa8 {[%emt 0:01:15]} Qd6 {[%emt 0:02:02]} 53. Rh8 {[%emt 0:01:13]} Re6 {[%emt 0:01:50]} 54. Qg8+ {[%emt 0:00:30]} Kf6 {[%emt 0:00:01]} 55. Rxh6+ {[%emt 0:01:15]} Ke7 {[%emt 0:00:03]} 56. Rh8 {[%emt 0:00:26]} Qd7 {[%emt 0:01:56]} 57. Qf8+ {[%emt 0:01:27]} Kf6 {[%emt 0:00:01]} 58. Rg8 {[%emt 0:00:24]} Re7 {[%emt 0:01:44]} 59. h6 {[%emt 0:00:30]} Qb7 {[%emt 0:01:20]} 60. Rg6+ {[%emt 0:00:44]} Ke5 {[%emt 0:00:19]} 61. Rxg5+ {[%emt 0:00:16]} Ke6 {[%emt 0:00:22]} 62. Rxb5 {[%emt 0:00:39]} Qxb5 {[%emt 0:00:02]} 63. h7 {[%emt 0:00:24]} Re8 {[%emt 0:00:21]} 64. Qh6+ {[%emt 0:00:12]} Ke7 {[%emt 0:00:34]} 65. h8=Q {[%emt 0:00:44]} Rxh8 {[%emt 0:00:04]} 66. Qxh8 {[%emt 0:00:07]} Qd5 {[%emt 0:00:03]} 67. Qh5 {[%emt 0:00:31]} Qc6 {[%emt 0:00:27]} 68. Qe5+ {[%emt 0:00:19]} Kf8 {[%emt 0:00:45]} 69. Rh3 {[%emt 0:00:13]} f6 {[%emt 0:00:03]} 70. Qxd4 {[%emt 0:01:14]} e3+ {[%emt 0:00:14]} 71. Rf3 {[%emt 0:00:35]} e2 {[%emt 0:00:18]} 72. Qe3 {[%emt 0:00:34]} Kf7 {[%emt 0:00:45]} 73. Qxe2 {[%emt 0:00:07]} Qd7 {[%emt 0:00:19]} 74. Qc4+ {[%emt 0:00:46]} Kg7 {[%emt 0:00:12]} 75. Rd3 {[%emt 0:00:42]} Qb7+ {[%emt 0:00:13]} 76. Qd5 {[%emt 0:00:07]} Qb4 {[%emt 0:00:14]} 77. Qd7+ {[%emt 0:00:14]} Kg8 {[%emt 0:00:13]} 78. Qe6+ {[%emt 0:00:09]} Kg7 {[%emt 0:00:10]} 79. Rd7+ {[%emt 0:00:11]} Kg6 {[%emt 0:00:11]} 80. Qf5+ {[%emt 0:00:05]} 1-0